bitfinex/quotes_SOLUSD_20250609
["timestamp","ask_amount","ask_price","bid_price","bid_amount"]
[1749482446371,22.53702511,155.3,155.27,10.56]
[1749482447399,37.44678742,155.3,155.27,10.56]
[1749482447786,37.44678742,155.3,155.25,14.90976231]
[1749482448507,42.25716805,155.3,155.26,14.90976231]
[1749482448675,37.44678742,155.3,155.26,14.90976231]
[1749482448877,42.25716805,155.3,155.26,14.90976231]
[1749482449092,37.44678742,155.3,155.26,14.90976231]
[1749482449298,42.25716805,155.3,155.26,14.90976231]
[1749482449498,37.44678742,155.3,155.25,14.90976231]
[1749482449699,37.44678742,155.3,155.24,14.90976231]
[1749482449700,14.90976231,155.29,155.24,14.90976231]
[1749482450001,22.53992787,155.28,155.24,14.90976231]
[1749482450209,37.44969018,155.28,155.23,25.44976231]
[1749482450377,39.03169018,155.28,155.23,25.44976231]
[1749482451076,14.90976231,155.26,155.23,10.54]
[1749482451481,14.90976231,155.27,155.23,25.44976231]
[1749482452522,22.54283137,155.26,155.23,25.44976231]
[1749482454513,37.45259368,155.26,155.23,10.54]
[1749482454821,14.90976231,155.25,155.2,52.00976231]
[1749482455113,14.90976231,155.24,155.2,14.90976231]
[1749482455317,14.90976231,155.25,155.2,14.90976231]
[1749482457428,22.54573563,155.24,155.2,14.90976231]
[1749482458016,37.45549794,155.24,155.2,14.90976231]
[1749482460935,14.90976231,155.23,155.19,25.46976231]
[1749482461427,14.90976231,155.22,155.19,10.56]
[1749482461606,6.44288383,155.21,155.17,14.90976231]
[1749482462530,22.55009341,155.21,155.17,14.90976231]
[1749482462832,22.55009341,155.21,155.18,14.90976231]
[1749482464100,6.44288383,155.21,155.2,14.90976231]
[1749482465028,16.10512872,155.24,155.2,14.90976231]
[1749482465344,6.44122383,155.25,155.23,14.90976231]
[1749482465643,7.5903,155.28,155.24,14.90976231]
[1749482465644,6.44039415,155.27,155.24,14.90976231]
[1749482466510,6.44039415,155.27,155.25,14.90976231]
[1749482467629,6.44039415,155.27,155.26,14.90976231]
[1749482469507,6.43956468,155.29,155.26,14.90976231]
[1749482469717,1.6419,155.32,155.28,14.90976231]
[1749482470026,6.43873543,155.31,155.29,14.90976231]
[1749482470226,6.43873543,155.31,155.3,14.90976231]
[1749482470422,6.43841093,155.32,155.3,14.90976231]
[1749482470728,6.43796543,155.33,155.31,14.90976231]
[1749482470910,6.43796543,155.33,155.32,14.90976231]
[1749482471623,22.52977147,155.35,155.32,14.90976231]
[1749482471847,6.43707756,155.35,155.32,14.90976231]
[1749482472006,6.43624895,155.37,155.34,14.90976231]
[1749482472202,6.43624895,155.37,155.36,14.90976231]
[1749482472827,6.43542055,155.39,155.36,14.90976231]
[1749482473050,6.43542055,155.39,155.38,14.90976231]
[1749482473617,22.51962423,155.42,155.38,14.90976231]
[1749482473912,27.31280382,155.42,155.38,14.90976231]
[1749482475145,27.31280382,155.42,155.39,14.90976231]
[1749482475430,22.51962423,155.42,155.4,14.90976231]
[1749482475634,22.51962423,155.42,155.39,14.90976231]
[1749482476023,22.51962423,155.42,155.4,14.90976231]
[1749482476214,22.51962423,155.42,155.41,14.90976231]
[1749482476535,6.43417835,155.42,155.41,14.90976231]
[1749482476711,22.51962423,155.42,155.39,14.90976231]
[1749482476911,22.51962423,155.42,155.35,26.0]
[1749482476912,14.90976231,155.41,155.37,14.90976231]
[1749482477107,22.52252251,155.4,155.36,14.90976231]
[1749482477530,22.52252251,155.4,155.35,26.0]
[1749482477815,22.52252251,155.4,155.36,14.90976231]
[1749482478111,22.52252251,155.4,155.37,14.90976231]
[1749482478530,6.43500643,155.4,155.38,14.90976231]
[1749482478734,6.43500643,155.4,155.39,14.90976231]
[1749482479237,6.43417835,155.42,155.39,14.90976231]
[1749482479627,6.43417835,155.42,155.4,14.90976231]
[1749482479825,6.43417835,155.42,155.39,14.90976231]
[1749482480136,37.42938654,155.42,155.37,14.90976231]
[1749482480346,14.90976231,155.41,155.36,14.90976231]
[1749482481033,6.43500643,155.4,155.36,14.90976231]
[1749482481353,26.0,155.34,155.21,0.5005]
[1749482481639,14.90976231,155.29,155.24,14.90976231]
[1749482481869,14.90976231,155.28,155.22,10.54]
[1749482482070,14.90976231,155.28,155.23,14.90976231]
[1749482482235,14.90976231,155.28,155.24,33.55941117]
[1749482483046,6.44039415,155.27,155.24,33.55941117]
[1749482485155,6.43997939,155.28,155.24,33.55941117]
[1749482485354,6.43997939,155.28,155.26,14.90976231]
[1749482486261,6.43915003,155.3,155.26,14.90976231]
[1749482488071,21.34891234,155.3,155.26,14.90976231]
[1749482488267,6.43915003,155.3,155.26,14.90976231]
[1749482488465,21.34891234,155.3,155.26,14.90976231]
[1749482489065,37.44678742,155.3,155.25,14.90976231]
[1749482489356,37.44678742,155.3,155.26,14.90976231]
[1749482490071,6.43915003,155.3,155.26,14.90976231]
[1749482490263,21.34891234,155.3,155.26,14.90976231]
[1749482491353,21.34891234,155.3,155.26,18.64964886]
[1749482491972,21.34891234,155.3,155.27,1.2]
[1749482493370,6.43915003,155.3,155.27,1.2]
[1749482493854,21.34891234,155.3,155.27,1.2]
[1749482494253,6.43915003,155.3,155.27,1.2]
[1749482494649,14.90976231,155.29,155.27,1.2]
[1749482494951,22.53702511,155.3,155.27,1.2]
[1749482495743,37.44678742,155.3,155.27,1.2]
[1749482496041,14.90976231,155.29,155.27,1.2]
[1749482496457,6.43997939,155.28,155.27,1.2]
[1749482498568,6.43956468,155.29,155.27,1.2]
[1749482499070,14.90976231,155.28,155.27,1.2]
[1749482500053,21.3497417,155.28,155.27,1.2]
[1749482500245,19.3497417,155.28,155.27,1.2]
[1749482501874,19.3497417,155.28,155.24,14.90976231]
[1749482502475,35.44969018,155.28,155.24,14.90976231]
[1749482503452,35.44969018,155.28,155.25,1.2]
[1749482503961,35.44969018,155.28,155.23,26.0]
[1749482503962,14.90976231,155.27,155.23,14.90976231]
[1749482504365,14.90976231,155.26,155.22,10.54]
[1749482504569,14.90976231,155.26,155.22,25.44976231]
[1749482505367,14.90976231,155.24,155.19,18.64964886]
[1749482505575,54.73982483,155.28,155.21,14.90976231]
[1749482505576,6.44205372,155.23,155.21,14.90976231]
[1749482507487,6.44205372,155.23,155.18,73.64]
[1749482507488,16.10513431,155.23,155.2,14.90976231]
[1749482508858,16.10513431,155.23,155.18,36.54]
[1749482509181,14.90976231,155.22,155.18,10.54]
[1749482509383,14.90976231,155.21,155.18,10.54]
[1749482509568,14.90976231,155.21,155.13,0.5005]
[1749482509569,6.44329896,155.2,155.16,14.90976231]
[1749482510081,22.55154638,155.2,155.16,14.90976231]
[1749482511277,22.55154638,155.2,155.17,1.1]
[1749482511481,31.01800973,155.2,155.17,1.1]
[1749482511981,16.52006231,155.19,155.17,1.1]
[1749482512356,14.90976231,155.18,155.14,10.54]
[1749482512590,16.52006231,155.19,155.14,25.44976231]
[1749482513174,16.52006231,155.19,155.15,14.90976231]
[1749482513666,6.44412939,155.18,155.15,14.90976231]
[1749482513866,22.55445288,155.18,155.15,14.90976231]
[1749482514389,22.55445288,155.18,155.14,25.44976231]
[1749482514774,6.44412939,155.18,155.16,14.90976231]
[1749482514977,16.10823178,155.21,155.17,14.90976231]
[1749482515276,1.6181,155.23,155.2,14.90976231]
[1749482515792,6.44246875,155.22,155.2,14.90976231]
[1749482516795,6.44246875,155.22,155.19,14.90976231]
[1749482517565,6.44246875,155.22,155.2,14.90976231]
[1749482519089,6.44246875,155.22,155.19,14.90976231]
[1749482519891,6.44246875,155.22,155.2,14.90976231]
[1749482521589,6.44246875,155.22,155.2,16.00976231]
[1749482521805,6.44246875,155.22,155.2,1.1]
[1749482521971,6.44246875,155.22,155.18,14.90976231]
[1749482522168,6.44246875,155.22,155.19,14.90976231]
[1749482522687,37.45840294,155.22,155.15,18.64964886]
[1749482522894,37.45840294,155.22,155.17,14.90976231]
[1749482523133,14.90976231,155.21,155.17,14.90976231]
[1749482523470,22.54864063,155.22,155.16,14.90976231]
[1749482523471,14.90976231,155.2,155.16,14.90976231]
[1749482523812,22.55299954,155.19,155.15,33.55941117]
[1749482524100,14.90976231,155.18,155.14,113.14976231]
[1749482524307,37.46276185,155.19,155.14,25.44976231]
[1749482525087,37.46276185,155.19,155.15,14.90976231]
[1749482526099,22.55299954,155.19,155.15,14.90976231]
[1749482526595,22.55299954,155.19,155.16,0.6]
[1749482526903,37.46276185,155.19,155.16,0.6]
[1749482527501,14.90976231,155.18,155.16,0.6]
[1749482527707,14.90976231,155.17,155.16,0.6]
[1749482527875,14.90976231,155.17,155.14,10.54]
[1749482528212,22.55736014,155.16,155.13,14.90976231]
[1749482529204,37.46712245,155.16,155.1,29.18964886]
[1749482529370,22.55736014,155.16,155.11,14.90976231]
[1749482529571,14.90976231,155.15,155.11,14.90976231]
[1749482529796,37.46712245,155.16,155.11,14.90976231]
[1749482529984,37.46712245,155.16,155.12,14.90976231]
[1749482530705,22.55736014,155.16,155.12,14.90976231]
[1749482530915,22.55736014,155.16,155.13,14.90976231]
[1749482531280,6.44496004,155.16,155.15,14.90976231]
[1749482531977,37.4652128,155.18,155.13,14.90976231]
[1749482532172,14.90976231,155.17,155.11,18.64964886]
[1749482532388,14.90976231,155.17,155.1,10.54]
[1749482532579,14.90976231,155.16,155.12,14.90976231]
[1749482532982,14.90976231,155.16,155.11,14.90976231]
[1749482533184,14.90976231,155.16,155.12,14.90976231]
[1749482533573,54.77609748,155.18,155.12,14.90976231]
[1749482533574,14.90976231,155.17,155.12,14.90976231]
[1749482534078,6.44496004,155.16,155.12,14.90976231]
[1749482534501,21.35472235,155.16,155.12,14.90976231]
[1749482535072,22.55736014,155.16,155.12,14.90976231]
[1749482535290,6.44496004,155.16,155.15,14.90976231]
[1749482535499,16.11025497,155.19,155.15,14.90976231]
[1749482535671,16.11025497,155.19,155.16,14.90976231]
[1749482536290,37.46373143,155.19,155.15,14.90976231]
[1749482536507,14.90976231,155.18,155.13,14.90976231]
[1749482537580,14.90976231,155.18,155.14,14.90976231]
[1749482537797,22.55396912,155.19,155.15,14.90976231]
[1749482537995,37.46373143,155.19,155.15,14.90976231]
[1749482538209,22.55396912,155.19,155.15,14.90976231]
[1749482538498,14.90976231,155.18,155.14,14.90976231]
[1749482538880,37.46373143,155.19,155.15,14.90976231]
[1749482539793,16.11025497,155.19,155.15,14.90976231]
[1749482540509,6.44329896,155.2,155.17,14.90976231]
[1749482540681,6.44246875,155.22,155.19,14.90976231]
[1749482541584,6.44246875,155.22,155.2,14.90976231]
[1749482541804,6.44205372,155.23,155.2,14.90976231]
[1749482543202,6.44205372,155.23,155.21,14.90976231]
[1749482543780,6.44163875,155.24,155.22,14.90976231]
[1749482544293,22.54573563,155.24,155.21,14.90976231]
[1749482544490,14.90976231,155.23,155.18,14.90976231]
[1749482544696,14.90976231,155.23,155.19,14.90976231]
[1749482545201,37.45549794,155.24,155.19,14.90976231]
[1749482545813,37.45549794,155.24,155.2,14.90976231]
[1749482547202,42.25593197,155.24,155.2,14.90976231]
[1749482547996,53.34616966,155.24,155.21,14.90976231]
[1749482548190,48.54573563,155.24,155.21,14.90976231]
[1749482548917,48.54573563,155.24,155.2,14.90976231]
[1749482549604,53.35147998,155.24,155.2,14.90976231]
[1749482549807,48.54573563,155.24,155.21,14.90976231]
[1749482550805,53.35268311,155.24,155.21,14.90976231]
[1749482551117,48.54573563,155.24,155.21,14.90976231]
[1749482551319,53.35272531,155.24,155.21,14.90976231]
[1749482551519,48.54573563,155.24,155.21,14.90976231]
[1749482551816,53.35311141,155.24,155.21,14.90976231]
[1749482552016,48.54573563,155.24,155.21,14.90976231]
[1749482552425,53.35361975,155.24,155.21,14.90976231]
[1749482552599,48.54573563,155.24,155.21,14.90976231]
[1749482552802,53.35361975,155.24,155.21,14.90976231]
[1749482553158,53.35359582,155.24,155.21,14.90976231]
[1749482554535,48.54573563,155.24,155.21,14.90976231]
[1749482554829,53.35404935,155.24,155.21,14.90976231]
[1749482555897,6.44163875,155.24,155.22,14.90976231]
[1749482556516,6.44163875,155.24,155.21,14.90976231]
[1749482558536,6.44163875,155.24,155.2,0.6]
[1749482558537,6.44122383,155.25,155.22,14.90976231]
[1749482559806,22.54378172,155.26,155.22,14.90976231]
[1749482560005,17.53185563,155.27,155.2,0.6]
[1749482560211,6.44057164,155.27,155.25,14.90976231]
[1749482560530,6.44057164,155.27,155.26,14.90976231]
[1749482561233,6.44016339,155.28,155.26,14.90976231]
[1749482563106,4.80541681,155.3,155.24,10.52]
[1749482563107,4.80541681,155.3,155.27,14.90976231]
[1749482563414,6.43873543,155.31,155.27,14.90976231]
[1749482563721,21.34849774,155.31,155.27,14.90976231]
[1749482564232,6.43873543,155.31,155.27,14.90976231]
[1749482568112,6.43873543,155.31,155.25,18.64964886]
[1749482568331,6.43873543,155.31,155.27,14.90976231]
[1749482568521,6.43873543,155.31,155.28,14.90976231]
[1749482573046,22.53412309,155.32,155.28,14.90976231]
[1749482577621,6.43832088,155.32,155.29,14.90976231]
[1749482577828,6.43832088,155.32,155.31,14.90976231]
[1749482578260,6.43832088,155.32,155.3,14.90976231]
[1749482578624,6.43832088,155.32,155.31,14.90976231]
[1749482579057,6.43832088,155.32,155.29,10.5]
[1749482579550,21.03412309,155.32,155.29,25.40976231]
[1749482581355,16.09580221,155.32,155.29,25.40976231]
[1749482583368,6.43790639,155.33,155.31,14.90976231]
[1749482583738,6.43790639,155.33,155.3,14.90976231]
[1749482584456,6.43790639,155.33,155.32,14.90976231]
[1749482584661,22.75850931,155.35,155.29,29.14964886]
[1749482584662,6.43749195,155.34,155.3,33.55941117]
[1749482586249,6.43749195,155.34,155.31,14.90976231]
[1749482586444,22.53122183,155.34,155.29,10.5]
[1749482586752,22.53122183,155.34,155.3,14.90976231]
[1749482589965,37.44098414,155.34,155.29,25.40976231]
[1749482590162,14.90976231,155.33,155.29,25.40976231]
[1749482590357,37.44098414,155.34,155.29,25.40976231]
[1749482591653,22.53122183,155.34,155.31,14.90976231]
[1749482594177,22.53122183,155.34,155.3,14.90976231]
[1749482594471,6.43749195,155.34,155.32,14.90976231]
[1749482595074,6.43749195,155.34,155.31,14.90976231]
[1749482595690,6.43707756,155.35,155.33,14.90976231]
[1749482595884,21.34683987,155.35,155.3,18.64964886]
[1749482596046,21.34683987,155.35,155.3,14.90976231]
[1749482596365,6.43707756,155.35,155.31,14.90976231]
[1749482597886,22.52977147,155.35,155.31,14.90976231]
[1749482599290,27.32741916,155.35,155.31,14.90976231]
[1749482599455,42.23718147,155.35,155.3,14.90976231]
[1749482599648,22.52977147,155.35,155.3,14.90976231]
[1749482599948,27.32741916,155.35,155.31,14.90976231]
[1749482600250,4.79764769,155.34,155.3,14.90976231]
[1749482600451,19.70741,155.34,155.27,18.64964886]
[1749482600652,14.90976231,155.32,155.27,33.55941117]
[1749482600884,14.90976231,155.31,155.26,25.40976231]
[1749482601180,22.53702511,155.3,155.27,14.90976231]
[1749482601385,22.53702511,155.3,155.28,14.90976231]
[1749482601560,6.43915003,155.3,155.28,14.90976231]
[1749482602767,6.43915003,155.3,155.27,33.55941117]
[1749482603073,6.43915003,155.3,155.27,14.90976231]
[1749482603274,6.43915003,155.3,155.26,10.5]
[1749482603275,6.43915003,155.3,155.28,14.90976231]
[1749482604299,6.43915003,155.3,155.29,14.90976231]
[1749482606566,6.43887809,155.31,155.29,14.90976231]
[1749482607073,11.25396784,155.31,155.29,14.90976231]
[1749482607266,6.43887809,155.31,155.29,14.90976231]
[1749482607873,11.25503374,155.31,155.29,14.90976231]
[1749482608189,6.43887809,155.31,155.29,14.90976231]
[1749482608662,6.43887809,155.31,155.28,14.90976231]
[1749482608866,4.81705421,155.3,155.28,14.90976231]
[1749482609079,4.81705421,155.3,155.29,14.90976231]
[1749482609275,6.43887809,155.31,155.29,14.90976231]
[1749482610399,22.53369783,155.33,155.29,14.90976231]
[1749482610589,4.81807128,155.32,155.29,14.90976231]
[1749482610901,4.81807128,155.31,155.29,14.90976231]
[1749482611208,22.53369783,155.33,155.29,14.90976231]
[1749482611388,4.81837605,155.32,155.29,14.90976231]
[1749482611703,4.81837605,155.31,155.29,14.90976231]
[1749482611897,4.81837605,155.3,155.29,14.90976231]
[1749482612089,11.25752608,155.3,155.29,14.90976231]
[1749482612290,4.81837605,155.3,155.29,14.90976231]
[1749482612508,6.43881157,155.31,155.29,14.90976231]
[1749482612805,4.81885928,155.3,155.29,14.90976231]
[1749482613005,4.81887867,155.3,155.29,14.90976231]
[1749482614179,11.2580287,155.3,155.29,14.90976231]
[1749482615674,11.2580287,155.3,155.28,10.5]
[1749482615880,4.82022123,155.29,155.28,10.5]
[1749482616208,21.31168354,155.29,155.24,25.40976231]
[1749482616416,4.82022123,155.28,155.24,25.40976231]
[1749482616703,16.49146231,155.29,155.25,14.90976231]
[1749482616882,4.81989217,155.28,155.25,14.90976231]
[1749482617090,4.82006918,155.27,155.25,14.90976231]
[1749482617289,6.43997939,155.28,155.25,14.90976231]
[1749482619902,6.43997939,155.28,155.26,14.90976231]
[1749482620494,22.53702511,155.3,155.26,14.90976231]
[1749482620799,4.81782143,155.29,155.26,14.90976231]
[1749482621001,37.44678742,155.3,155.26,14.90976231]
[1749482621202,4.81780251,155.29,155.26,14.90976231]
[1749482621512,37.44678742,155.3,155.26,14.90976231]
[1749482621720,4.81765573,155.29,155.26,14.90976231]
[1749482621891,37.44678742,155.3,155.26,14.90976231]
[1749482622211,4.81759757,155.29,155.26,14.90976231]
[1749482622385,37.44678742,155.3,155.26,14.90976231]
[1749482622586,4.81752616,155.29,155.26,14.90976231]
[1749482622786,37.44678742,155.3,155.26,14.90976231]
[1749482622997,4.81744862,155.29,155.26,14.90976231]
[1749482623303,37.44678742,155.3,155.26,14.90976231]
[1749482623502,4.81727669,155.29,155.26,14.90976231]
[1749482623702,37.44678742,155.3,155.26,14.90976231]
[1749482623900,4.81715919,155.29,155.26,14.90976231]
[1749482624121,37.44678742,155.3,155.26,14.90976231]
[1749482624416,4.81700853,155.29,155.26,14.90976231]
[1749482624623,37.44678742,155.3,155.26,14.90976231]
[1749482624809,6.43997939,155.28,155.26,14.90976231]
[1749482625207,6.43997939,155.28,155.25,14.90976231]
[1749482625423,11.25696638,155.28,155.24,10.5]
[1749482625607,11.25685218,155.28,155.24,25.40976231]
[1749482626099,27.35680066,155.28,155.24,25.40976231]
[1749482627806,27.35680066,155.28,155.25,14.90976231]
[1749482628537,22.53992787,155.28,155.25,14.90976231]
[1749482628704,27.35570877,155.28,155.25,14.90976231]
[1749482630716,16.09994848,155.28,155.25,14.90976231]
[1749482631134,6.43956468,155.29,155.26,14.90976231]
[1749482631435,6.43956468,155.29,155.26,9.55625252]
[1749482631745,11.25458923,155.29,155.25,9.55625252]
[1749482632128,11.25459081,155.29,155.25,9.55625252]
[1749482633434,6.43956468,155.29,155.25,9.55625252]
[1749482633627,11.25483029,155.29,155.26,9.55625252]
[1749482633924,6.43956468,155.29,155.26,9.55625252]
[1749482634606,11.25507687,155.29,155.26,9.55625252]
[1749482634808,6.43956468,155.29,155.26,9.55625252]
[1749482635126,6.43915003,155.3,155.26,9.55625252]
[1749482635327,4.81558813,155.29,155.26,9.55625252]
[1749482635510,6.43915003,155.3,155.26,9.55625252]
[1749482635699,4.81560571,155.29,155.26,9.55625252]
[1749482635898,4.8155282,155.29,155.26,9.55625252]
[1749482636426,6.43915003,155.3,155.26,9.55625252]
[1749482638810,6.43997939,155.28,155.26,9.55625252]
[1749482640136,6.43915003,155.3,155.26,9.55625252]
[1749482640520,4.81706817,155.29,155.28,9.55625252]
[1749482640834,6.43915003,155.3,155.28,9.55625252]
[1749482641707,6.43832088,155.32,155.28,9.55625252]
[1749482641905,4.81805222,155.31,155.28,9.55625252]
[1749482642128,4.81805222,155.3,155.28,9.55625252]
[1749482642445,4.81805222,155.31,155.28,9.55625252]
[1749482642616,4.81862107,155.3,155.28,9.55625252]
[1749482642817,6.43832088,155.32,155.28,9.55625252]
[1749482643024,4.81861032,155.31,155.28,9.55625252]
[1749482643226,6.43832088,155.32,155.28,9.55625252]
[1749482643434,4.81860855,155.31,155.28,9.55625252]
[1749482643741,6.43832088,155.32,155.28,9.55625252]
[1749482644039,4.81913465,155.31,155.28,9.55625252]
[1749482644224,4.81931288,155.3,155.28,9.55625252]
[1749482644541,22.53412309,155.32,155.26,39.88]
[1749482644542,32.09037561,155.32,155.27,28.20590138]
[1749482644756,4.81983136,155.31,155.27,28.20590138]
[1749482644926,32.09037561,155.32,155.27,28.20590138]
[1749482645249,4.81963901,155.31,155.28,9.55625252]
[1749482645443,22.53412309,155.32,155.28,9.55625252]
[1749482645748,4.8199463,155.31,155.28,9.55625252]
[1749482645906,11.25917582,155.3,155.28,9.55625252]
[1749482646111,6.43922952,155.3,155.28,9.55625252]
[1749482647667,32.09037561,155.32,155.27,28.20590138]
[1749482648022,4.81989609,155.31,155.27,28.20590138]
[1749482648227,4.81989609,155.3,155.27,28.20590138]
[1749482648432,32.09037561,155.32,155.27,28.20590138]
[1749482648632,4.81971623,155.31,155.27,28.20590138]
[1749482648951,4.81971623,155.3,155.27,28.20590138]
[1749482649261,32.09037561,155.32,155.27,28.20590138]
[1749482649458,6.43915003,155.3,155.27,28.20590138]
[1749482650133,6.43915003,155.3,155.27,9.55625252]
[1749482650783,4.82027765,155.29,155.26,59.91625252]
[1749482650935,6.43915003,155.3,155.26,59.91625252]
[1749482651132,4.82033741,155.29,155.26,59.91625252]
[1749482651331,6.43915003,155.3,155.26,59.91625252]
[1749482651532,4.820401,155.29,155.26,59.91625252]
[1749482651835,6.43915003,155.3,155.26,59.91625252]
[1749482652037,4.82045182,155.29,155.27,9.55625252]
[1749482652244,6.43915003,155.3,155.27,9.55625252]
[1749482652651,4.82064662,155.29,155.27,9.55625252]
[1749482652859,6.43832088,155.32,155.28,9.55625252]
[1749482653155,4.82027299,155.31,155.29,9.55625252]
[1749482653364,6.43832088,155.32,155.29,9.55625252]
[1749482653662,4.82020817,155.31,155.29,9.55625252]
[1749482653870,6.43832088,155.32,155.29,9.55625252]
[1749482654048,4.82018814,155.31,155.29,9.55625252]
[1749482654239,6.43832088,155.32,155.29,9.55625252]
[1749482654432,4.82009374,155.31,155.29,9.55625252]
[1749482654648,6.43832088,155.32,155.29,9.55625252]
[1749482654848,4.82017038,155.31,155.29,9.55625252]
[1749482655049,6.43832088,155.32,155.29,9.55625252]
[1749482655273,4.82003604,155.31,155.29,9.55625252]
[1749482655481,6.43832088,155.32,155.29,9.55625252]
[1749482655680,4.8201156,155.31,155.29,9.55625252]
[1749482655881,6.43832088,155.32,155.29,9.55625252]
[1749482656061,4.8200962,155.31,155.29,9.55625252]
[1749482656265,6.43832088,155.32,155.29,9.55625252]
[1749482656456,4.81996482,155.31,155.29,9.55625252]
[1749482656657,6.43832088,155.32,155.29,9.55625252]
[1749482656858,4.81996986,155.31,155.29,9.55625252]
[1749482657172,6.43832088,155.32,155.29,9.55625252]
[1749482657376,4.8198468,155.31,155.29,9.55625252]
[1749482657568,6.43832088,155.32,155.29,9.55625252]
[1749482657775,4.81989536,155.31,155.29,9.55625252]
[1749482658075,6.43832088,155.32,155.29,9.55625252]
[1749482658386,4.81935098,155.31,155.29,9.55625252]
[1749482658582,6.43832088,155.32,155.29,9.55625252]
[1749482658887,4.81936808,155.31,155.29,9.55625252]
[1749482659051,6.43832088,155.32,155.29,9.55625252]
[1749482659247,8.04211759,155.33,155.31,9.55625252]
[1749482659683,8.04211759,155.33,155.3,9.55625252]
[1749482659976,8.04211759,155.33,155.31,9.55625252]
[1749482661488,8.04211759,155.33,155.3,9.55625252]
[1749482663089,12.85791194,155.33,155.3,9.55625252]
[1749482663385,12.85791194,155.33,155.31,9.55625252]
[1749482664194,6.41969435,155.33,155.31,9.55625252]
[1749482664569,6.41969435,155.33,155.32,9.55625252]
[1749482664863,6.41945305,155.33,155.31,9.55625252]
[1749482665190,1.6039,155.33,155.31,9.55625252]
[1749482665888,12.85685359,155.33,155.31,9.55625252]
[1749482667787,8.04187083,155.33,155.31,9.55625252]
[1749482668995,12.85577927,155.33,155.31,9.55625252]
[1749482669172,8.04187083,155.33,155.31,9.55625252]
[1749482672684,1.6039,155.33,155.31,9.55625252]
[1749482673370,6.4376391,155.34,155.32,9.55625252]
[1749482673865,6.43707756,155.35,155.31,9.55625252]
[1749482674054,4.81403043,155.34,155.31,9.55625252]
[1749482674259,6.43707756,155.35,155.31,9.55625252]
[1749482674458,4.81395755,155.34,155.31,9.55625252]
[1749482674653,6.43707756,155.35,155.31,9.55625252]
[1749482674888,4.81450728,155.34,155.29,10.46]
[1749482675066,4.81450728,155.33,155.3,9.55625252]
[1749482675266,32.08602399,155.35,155.3,9.55625252]
[1749482675467,4.81463111,155.34,155.3,9.55625252]
[1749482675665,4.81463111,155.33,155.3,9.55625252]
[1749482675883,6.43790639,155.33,155.31,9.55625252]
[1749482676067,11.2525375,155.33,155.31,9.55625252]
[1749482676269,6.43790639,155.33,155.31,9.55625252]
[1749482677374,6.43790639,155.33,155.3,9.55625252]
[1749482677579,6.43790639,155.33,155.29,10.46]
[1749482677769,6.43790639,155.33,155.3,9.55625252]
[1749482677981,6.43749195,155.34,155.3,9.55625252]
[1749482678162,4.81568705,155.33,155.31,9.55625252]
[1749482678362,6.43749195,155.34,155.31,9.55625252]
[1749482678662,4.81596326,155.33,155.31,9.55625252]
[1749482678859,6.43749195,155.34,155.31,9.55625252]
[1749482679060,4.81604461,155.33,155.31,9.55625252]
[1749482679288,6.43749195,155.34,155.31,9.55625252]
[1749482679480,4.81613551,155.33,155.31,9.55625252]
[1749482679690,6.43749195,155.34,155.31,9.55625252]
[1749482679891,4.81635086,155.33,155.31,9.55625252]
[1749482680068,11.25494002,155.32,155.29,20.01625252]
[1749482680270,6.43832088,155.32,155.29,20.01625252]
[1749482680667,4.81716276,155.31,155.29,20.01625252]
[1749482680872,6.43832088,155.32,155.29,20.01625252]
[1749482681083,6.43832088,155.32,155.29,10.46]
[1749482681084,4.81721232,155.31,155.29,10.46]
[1749482681269,4.81756667,155.3,155.29,10.46]
[1749482682292,4.81756667,155.3,155.29,20.01625252]
[1749482682293,11.2567167,155.3,155.29,20.01625252]
[1749482682507,6.43888538,155.31,155.29,10.46]
[1749482682808,6.43888538,155.31,155.29,20.01625252]
[1749482686195,6.43790639,155.33,155.29,20.01625252]
[1749482686386,4.81907023,155.32,155.29,20.01625252]
[1749482686587,6.43790639,155.33,155.29,20.01625252]
[1749482686824,4.81912965,155.32,155.29,20.01625252]
[1749482686993,6.43790639,155.33,155.29,20.01625252]
[1749482687194,4.81910865,155.32,155.31,9.55625252]
[1749482687390,11.2575702,155.32,155.3,9.55625252]
[1749482687600,6.43846155,155.32,155.29,20.01625252]
[1749482688803,6.43846155,155.32,155.29,9.55625252]
[1749482689602,6.43790639,155.33,155.29,9.55625252]
[1749482689794,4.81977059,155.32,155.29,9.55625252]
[1749482689995,6.43790639,155.33,155.29,9.55625252]
[1749482690204,4.81992174,155.32,155.29,9.55625252]
[1749482690403,6.43790639,155.33,155.29,9.55625252]
[1749482690626,4.81994063,155.32,155.29,9.55625252]
[1749482690825,6.43790639,155.33,155.29,9.55625252]
[1749482691130,4.81993303,155.32,155.29,9.55625252]
[1749482691421,6.43790639,155.33,155.29,9.55625252]
[1749482691622,4.8202332,155.32,155.27,29.10964886]
[1749482691924,6.43873543,155.31,155.29,9.55625252]
[1749482694245,6.43790639,155.33,155.29,9.55625252]
[1749482694425,4.8208753,155.32,155.29,9.55625252]
[1749482694624,4.8208753,155.31,155.29,9.55625252]
[1749482694836,6.43790639,155.33,155.29,9.55625252]